[Event "Titled Tuesday Blitz April 25 Late 2023"]
[White "Debray, Christopher"]
[Black "Terry, Renato"]
[WhiteFideId "630810"]
[BlackFideId "3803457"]
[WhiteElo "2340"]
[BlackElo "2575"]
[Result "0-1"]
[Round "01"]
[TimeControl "180+2"]
[Date "2023.04.25"]
[WhiteClock "0:00:19"]
[BlackClock "0:00:57"]

1. d4 {[%clk 0:02:56]}  e6 {[%clk 0:03:00]} 2. Bf4 {[%clk 0:02:55]}  Nf6 {[%clk 0:03:00]} 3. e3 {[%clk 0:02:55]}  b6 {[%clk 0:03:00]} 4. Qf3 {[%clk 0:02:51]}  Nc6 {[%clk 0:03:00]} 5. c3 {[%clk 0:02:38]}  Bb7 {[%clk 0:03:00]} 6. Nd2 {[%clk 0:02:15]}  a6 {[%clk 0:02:56]} 7. e4 {[%clk 0:02:08]}  d6 {[%clk 0:02:56]} 8. Bd3 {[%clk 0:02:08]}  e5 {[%clk 0:02:56]} 9. Be3 {[%clk 0:02:08]}  d5 {[%clk 0:02:54]} 10. Ne2 {[%clk 0:02:02]}  Be7 {[%clk 0:02:48]} 11. O-O {[%clk 0:01:55]}  O-O {[%clk 0:02:48]} 12. Ng3 {[%clk 0:01:47]}  exd4 {[%clk 0:02:47]} 13. cxd4 {[%clk 0:01:47]}  dxe4 {[%clk 0:02:48]} 14. Ndxe4 {[%clk 0:01:41]}  Na5 {[%clk 0:02:31]} 15. Nf5 {[%clk 0:01:25]}  Nxe4 {[%clk 0:02:31]} 16. Bxe4 {[%clk 0:01:25]}  Bxe4 {[%clk 0:02:31]} 17. Qxe4 {[%clk 0:01:26]}  Bf6 {[%clk 0:02:32]} 18. Rac1 {[%clk 0:01:20]}  Qd7 {[%clk 0:02:29]} 19. b4 {[%clk 0:01:20]}  Nb7 {[%clk 0:02:15]} 20. Nh6+ {[%clk 0:01:08]}  gxh6 {[%clk 0:02:13]} 21. Qxb7 {[%clk 0:01:08]}  Rfc8 {[%clk 0:02:10]} 22. Bxh6 {[%clk 0:01:06]}  Rab8 {[%clk 0:01:58]} 23. Qf3 {[%clk 0:01:06]}  Bg7 {[%clk 0:01:03]} 24. Qg3 {[%clk 0:00:59]}  f5 {[%clk 0:01:03]} 25. Rfe1 {[%clk 0:00:53]}  c6 {[%clk 0:01:03]} 26. Rxc6 {[%clk 0:00:44]}  Rxc6 {[%clk 0:00:59]} 27. Qxb8+ {[%clk 0:00:44]}  Rc8 {[%clk 0:00:59]} 28. Qg3 {[%clk 0:00:44]}  Kh8 {[%clk 0:01:00]} 29. Bxg7+ {[%clk 0:00:34]}  Qxg7 {[%clk 0:01:01]} 30. Qxg7+ {[%clk 0:00:34]}  Kxg7 {[%clk 0:01:02]} 31. Rd1 {[%clk 0:00:28]}  Kf6 {[%clk 0:01:00]} 32. h3 {[%clk 0:00:27]}  Rc2 {[%clk 0:00:56]} 33. a4 {[%clk 0:00:24]}  Rc4 {[%clk 0:00:56]} 34. a5 {[%clk 0:00:19]}  b5 {[%clk 0:00:56]} 35. d5 {[%clk 0:00:17]}  Ke7 {[%clk 0:00:56]} 36. d6+ {[%clk 0:00:16]}  Kd7 {[%clk 0:00:57]} 37. Kh2 {[%clk 0:00:16]}  Rxb4 {[%clk 0:00:57]} 38. Rd5 {[%clk 0:00:16]}  Ra4 {[%clk 0:00:55]} 39. Rxf5 {[%clk 0:00:15]}  b4 {[%clk 0:00:56]} 40. Rf7+ {[%clk 0:00:13]}  Kxd6 {[%clk 0:00:56]} 41. Rxh7 {[%clk 0:00:14]}  Rxa5 {[%clk 0:00:57]} 42. Rh6+ {[%clk 0:00:14]}  Kc5 {[%clk 0:00:53]} 43. Rh8 {[%clk 0:00:13]}  b3 {[%clk 0:00:52]} 44. Rb8 {[%clk 0:00:14]}  Rb5 {[%clk 0:00:52]} 45. Rc8+ {[%clk 0:00:14]}  Kd4 {[%clk 0:00:52]} 46. Rc1 {[%clk 0:00:14]}  b2 {[%clk 0:00:52]} 47. Rb1 {[%clk 0:00:15]}  a5 {[%clk 0:00:52]} 48. h4 {[%clk 0:00:15]}  a4 {[%clk 0:00:53]} 49. g4 {[%clk 0:00:16]}  a3 {[%clk 0:00:53]} 50. h5 {[%clk 0:00:16]}  a2 {[%clk 0:00:54]} 51. Rxb2 {[%clk 0:00:16]}  Rxb2 {[%clk 0:00:55]} 52. h6 {[%clk 0:00:16]}  a1=Q {[%clk 0:00:56]} 53. Kg3 {[%clk 0:00:17]}  Qg1+ {[%clk 0:00:55]} 54. Kf4 {[%clk 0:00:17]}  Rxf2+ {[%clk 0:00:56]} 55. Kg5 {[%clk 0:00:18]}  Qc1+ {[%clk 0:00:55]} 56. Kg6 {[%clk 0:00:19]}  Qc2+ {[%clk 0:00:54]} 57. Kg7 {[%clk 0:00:19]}  Qc7+ {[%clk 0:00:55]} 58. Kg8 {[%clk 0:00:19]}  Qf7+ {[%clk 0:00:55]} 59. Kh8 {[%clk 0:00:18]}  Re2 {[%clk 0:00:56]} 60. h7 {[%clk 0:00:19]}  Re8# {[%clk 0:00:57]} 0-1


[Site "https://www.chess.com"]

[Event "Titled Tuesday Blitz April 25 Late 2023"]
[White "Van Foreest, Jorden"]
[Black "Shapiro, Viktor"]
[WhiteFideId "1039784"]
[BlackFideId "4175700"]
[WhiteElo "2633"]
[BlackElo "2152"]
[Result "1-0"]
[Round "01"]
[TimeControl "180+2"]
[Date "2023.04.25"]
[WhiteClock "0:01:38"]
[BlackClock "0:00:19"]

1. e4 {[%clk 0:02:54]}  Nf6 {[%clk 0:03:00]} 2. Nc3 {[%clk 0:02:53]}  d5 {[%clk 0:03:00]} 3. e5 {[%clk 0:02:51]}  Nfd7 {[%clk 0:03:01]} 4. f4 {[%clk 0:02:48]}  e6 {[%clk 0:03:01]} 5. d4 {[%clk 0:02:48]}  c5 {[%clk 0:03:02]} 6. Nf3 {[%clk 0:02:48]}  Nc6 {[%clk 0:03:02]} 7. Ne2 {[%clk 0:02:47]}  a6 {[%clk 0:03:03]} 8. c3 {[%clk 0:02:48]}  b5 {[%clk 0:03:03]} 9. g4 {[%clk 0:02:47]}  h5 {[%clk 0:03:02]} 10. gxh5 {[%clk 0:02:46]}  Rxh5 {[%clk 0:03:01]} 11. Ng3 {[%clk 0:02:45]}  Rh8 {[%clk 0:03:01]} 12. f5 {[%clk 0:02:46]}  cxd4 {[%clk 0:02:45]} 13. fxe6 {[%clk 0:02:46]}  fxe6 {[%clk 0:02:45]} 14. cxd4 {[%clk 0:02:45]}  Qb6 {[%clk 0:02:33]} 15. Bd3 {[%clk 0:02:41]}  Bb4+ {[%clk 0:02:26]} 16. Kf1 {[%clk 0:02:40]}  Rf8 {[%clk 0:02:22]} 17. Kg2 {[%clk 0:02:39]}  Bb7 {[%clk 0:02:17]} 18. a3 {[%clk 0:02:32]}  Be7 {[%clk 0:02:13]} 19. Bg6+ {[%clk 0:02:30]}  Kd8 {[%clk 0:02:13]} 20. Be3 {[%clk 0:02:30]}  Ncxe5 {[%clk 0:02:04]} 21. Nxe5 {[%clk 0:02:18]}  Nxe5 {[%clk 0:02:04]} 22. Bd3 {[%clk 0:02:02]}  Nc4 {[%clk 0:01:57]} 23. Qe2 {[%clk 0:02:01]}  e5 {[%clk 0:01:47]} 24. Rhf1 {[%clk 0:02:00]}  Nxe3+ {[%clk 0:01:30]} 25. Qxe3 {[%clk 0:02:01]}  Qxd4 {[%clk 0:01:30]} 26. Qxd4 {[%clk 0:02:02]}  exd4 {[%clk 0:01:30]} 27. Nf5 {[%clk 0:02:02]}  Bf6 {[%clk 0:01:09]} 28. Nxd4 {[%clk 0:02:01]}  Bxd4 {[%clk 0:00:58]} 29. Rxf8+ {[%clk 0:02:00]}  Ke7 {[%clk 0:00:59]} 30. Rxa8 {[%clk 0:01:58]}  Bxa8 {[%clk 0:00:59]} 31. Re1+ {[%clk 0:01:58]}  Kd6 {[%clk 0:00:57]} 32. Re2 {[%clk 0:01:57]}  Be5 {[%clk 0:00:53]} 33. Kf3 {[%clk 0:01:57]}  Bc6 {[%clk 0:00:50]} 34. h4 {[%clk 0:01:57]}  Be8 {[%clk 0:00:46]} 35. Kg4 {[%clk 0:01:57]}  a5 {[%clk 0:00:38]} 36. h5 {[%clk 0:01:57]}  b4 {[%clk 0:00:37]} 37. axb4 {[%clk 0:01:56]}  axb4 {[%clk 0:00:37]} 38. b3 {[%clk 0:01:57]}  Bd7+ {[%clk 0:00:35]} 39. Bf5 {[%clk 0:01:57]}  Bc6 {[%clk 0:00:35]} 40. Bd3 {[%clk 0:01:52]}  Bd7+ {[%clk 0:00:34]} 41. Kg5 {[%clk 0:01:53]}  Be8 {[%clk 0:00:26]} 42. Ra2 {[%clk 0:01:46]}  Bf6+ {[%clk 0:00:24]} 43. Kg4 {[%clk 0:01:44]}  Bd7+ {[%clk 0:00:24]} 44. Bf5 {[%clk 0:01:45]}  Bb5 {[%clk 0:00:23]} 45. Ra5 {[%clk 0:01:43]}  Be2+ {[%clk 0:00:20]} 46. Kf4 {[%clk 0:01:42]}  Bxh5 {[%clk 0:00:21]} 47. Bg4 {[%clk 0:01:40]}  Bxg4 {[%clk 0:00:20]} 48. Kxg4 {[%clk 0:01:40]}  Ke5 {[%clk 0:00:21]} 49. Rb5 {[%clk 0:01:36]}  Be7 {[%clk 0:00:21]} 50. Rb7 {[%clk 0:01:36]}  Bf8 {[%clk 0:00:20]} 51. Rf7 {[%clk 0:01:34]}  Bc5 {[%clk 0:00:20]} 52. Rxg7 {[%clk 0:01:34]}  d4 {[%clk 0:00:21]} 53. Rg5+ {[%clk 0:01:32]}  Kd6 {[%clk 0:00:20]} 54. Kf5 {[%clk 0:01:32]}  d3 {[%clk 0:00:20]} 55. Rg3 {[%clk 0:01:32]}  Kc6 {[%clk 0:00:19]} 56. Rxd3 {[%clk 0:01:33]}  Kb5 {[%clk 0:00:19]} 57. Ke4 {[%clk 0:01:34]}  Bb6 {[%clk 0:00:19]} 58. Kd5 {[%clk 0:01:34]}  Bc5 {[%clk 0:00:19]} 59. Rd2 {[%clk 0:01:34]}  Bb6 {[%clk 0:00:20]} 60. Rc2 {[%clk 0:01:35]}  Bd8 {[%clk 0:00:19]} 61. Rc8 {[%clk 0:01:35]}  Bb6 {[%clk 0:00:19]} 62. Rb8 {[%clk 0:01:36]}  Ka6 {[%clk 0:00:19]} 63. Kc6 {[%clk 0:01:37]}  Bd4 {[%clk 0:00:19]} 64. Ra8+ {[%clk 0:01:37]}  Ba7 {[%clk 0:00:20]} 65. Kc7 {[%clk 0:01:37]}  Kb5 {[%clk 0:00:19]} 66. Rxa7 {[%clk 0:01:38]} 1-0


[Site "https://www.chess.com"]

[Event "Titled Tuesday Blitz April 25 Late 2023"]
[White "Grigoriants, Sergey"]
[Black "Seletsky, Grigory"]
[WhiteFideId "4130804"]
[BlackFideId "14112191"]
[WhiteElo "2502"]
[BlackElo "2490"]
[Result "1-0"]
[Round "01"]
[TimeControl "180+2"]
[Date "2023.04.25"]
[WhiteClock "0:00:43"]
[BlackClock "0:00:16"]

1. d4 {[%clk 0:02:57]}  d6 {[%clk 0:02:57]} 2. e4 {[%clk 0:02:56]}  e5 {[%clk 0:02:57]} 3. Nf3 {[%clk 0:02:53]}  Nd7 {[%clk 0:02:53]} 4. Bc4 {[%clk 0:02:51]}  c6 {[%clk 0:02:47]} 5. O-O {[%clk 0:02:42]}  Be7 {[%clk 0:02:45]} 6. a4 {[%clk 0:02:30]}  a5 {[%clk 0:02:41]} 7. Re1 {[%clk 0:02:28]}  Ngf6 {[%clk 0:02:39]} 8. Nc3 {[%clk 0:02:22]}  O-O {[%clk 0:02:38]} 9. h3 {[%clk 0:02:21]}  Qc7 {[%clk 0:02:36]} 10. b3 {[%clk 0:02:09]}  Nb6 {[%clk 0:02:33]} 11. Bd3 {[%clk 0:02:07]}  h6 {[%clk 0:02:31]} 12. Bb2 {[%clk 0:02:04]}  Re8 {[%clk 0:02:29]} 13. Ne2 {[%clk 0:02:04]}  Bf8 {[%clk 0:02:29]} 14. Ng3 {[%clk 0:02:04]}  g6 {[%clk 0:02:28]} 15. Qd2 {[%clk 0:01:48]}  Nbd7 {[%clk 0:02:13]} 16. Rad1 {[%clk 0:01:46]}  b6 {[%clk 0:01:51]} 17. Bc4 {[%clk 0:01:40]}  Bg7 {[%clk 0:01:23]} 18. Ba3 {[%clk 0:01:31]}  c5 {[%clk 0:01:18]} 19. dxe5 {[%clk 0:01:27]}  Nxe5 {[%clk 0:01:02]} 20. Qxd6 {[%clk 0:01:14]}  Qxd6 {[%clk 0:00:58]} 21. Rxd6 {[%clk 0:01:15]}  Nxc4 {[%clk 0:00:50]} 22. bxc4 {[%clk 0:01:16]}  Bb7 {[%clk 0:00:41]} 23. Rxb6 {[%clk 0:01:15]}  Bxe4 {[%clk 0:00:40]} 24. Rxf6 {[%clk 0:01:13]}  Bxf3 {[%clk 0:00:39]} 25. Rxe8+ {[%clk 0:01:12]}  Rxe8 {[%clk 0:00:39]} 26. Rxf3 {[%clk 0:01:13]}  Re1+ {[%clk 0:00:35]} 27. Nf1 {[%clk 0:01:09]}  Bd4 {[%clk 0:00:35]} 28. c3 {[%clk 0:00:59]}  Bg7 {[%clk 0:00:27]} 29. Bxc5 {[%clk 0:00:59]}  Ra1 {[%clk 0:00:28]} 30. Bd4 {[%clk 0:00:57]}  Rxa4 {[%clk 0:00:27]} 31. c5 {[%clk 0:00:56]}  Bxd4 {[%clk 0:00:20]} 32. cxd4 {[%clk 0:00:56]}  Rxd4 {[%clk 0:00:20]} 33. Rc3 {[%clk 0:00:42]}  Rd7 {[%clk 0:00:16]} 34. c6 {[%clk 0:00:42]}  Rc7 {[%clk 0:00:16]} 35. Ne3 {[%clk 0:00:42]}  Kf8 {[%clk 0:00:16]} 36. Nd5 {[%clk 0:00:43]}  Rc8 {[%clk 0:00:16]} 37. c7 {[%clk 0:00:43]} 1-0


[Site "https://www.chess.com"]

[Event "Titled Tuesday Blitz April 25 Late 2023"]
[White "Kevlishvili, Robby"]
[Black "Womacka, Mathias"]
[WhiteFideId "1040634"]
[BlackFideId "4611390"]
[WhiteElo "2572"]
[BlackElo "2377"]
[Result "1-0"]
[Round "01"]
[TimeControl "180+2"]
[Date "2023.04.26"]
[WhiteClock "0:01:20"]
[BlackClock "0:00:47"]

1. e4 {[%clk 0:02:57]}  c5 {[%clk 0:02:59]} 2. Nf3 {[%clk 0:02:55]}  d6 {[%clk 0:02:59]} 3. d4 {[%clk 0:02:53]}  cxd4 {[%clk 0:02:59]} 4. Nxd4 {[%clk 0:02:53]}  Nf6 {[%clk 0:03:00]} 5. Nc3 {[%clk 0:02:53]}  a6 {[%clk 0:03:00]} 6. h4 {[%clk 0:02:53]}  e5 {[%clk 0:02:53]} 7. Nb3 {[%clk 0:02:51]}  Be7 {[%clk 0:02:51]} 8. Bg5 {[%clk 0:02:52]}  Nbd7 {[%clk 0:02:45]} 9. Bc4 {[%clk 0:02:45]}  b5 {[%clk 0:02:43]} 10. Bd5 {[%clk 0:02:45]}  Rb8 {[%clk 0:02:28]} 11. Bc6 {[%clk 0:02:40]}  O-O {[%clk 0:02:26]} 12. Bxd7 {[%clk 0:02:37]}  Bxd7 {[%clk 0:02:19]} 13. Bxf6 {[%clk 0:02:30]}  Bxf6 {[%clk 0:02:20]} 14. Nd5 {[%clk 0:02:31]}  Be6 {[%clk 0:01:55]} 15. c3 {[%clk 0:02:14]}  Bxd5 {[%clk 0:01:39]} 16. Qxd5 {[%clk 0:02:13]}  Bxh4 {[%clk 0:01:39]} 17. g3 {[%clk 0:02:12]}  Bg5 {[%clk 0:01:38]} 18. Rd1 {[%clk 0:02:10]}  Qf6 {[%clk 0:01:32]} 19. Ke2 {[%clk 0:01:58]}  Rfd8 {[%clk 0:01:22]} 20. Na5 {[%clk 0:01:56]}  Rbc8 {[%clk 0:01:20]} 21. Nc6 {[%clk 0:01:52]}  Re8 {[%clk 0:01:16]} 22. a4 {[%clk 0:01:39]}  bxa4 {[%clk 0:01:15]} 23. Nb4 {[%clk 0:01:39]}  a3 {[%clk 0:01:05]} 24. bxa3 {[%clk 0:01:20]}  Rxc3 {[%clk 0:01:04]} 25. Rd3 {[%clk 0:01:20]}  Rxd3 {[%clk 0:00:51]} 26. Qxd3 {[%clk 0:01:21]}  a5 {[%clk 0:00:48]} 27. Nd5 {[%clk 0:01:21]}  Rb8 {[%clk 0:00:47]} 28. Nxf6+ {[%clk 0:01:20]} 1-0


[Site "https://www.chess.com"]

[Event "Titled Tuesday Blitz April 25 Late 2023"]
[White "Marczuk, Dominik"]
[Black "Kuzubov, Yuriy"]
[WhiteFideId "1111264"]
[BlackFideId "14112906"]
[WhiteElo "2174"]
[BlackElo "2496"]
[Result "1/2-1/2"]
[Round "01"]
[TimeControl "180+2"]
[Date "2023.04.25"]
[WhiteClock "0:00:07"]
[BlackClock "0:00:42"]

1. e4 {[%clk 0:02:59]}  c5 {[%clk 0:02:59]} 2. Nf3 {[%clk 0:02:59]}  Nc6 {[%clk 0:03:00]} 3. d4 {[%clk 0:02:59]}  cxd4 {[%clk 0:03:01]} 4. Nxd4 {[%clk 0:02:59]}  g6 {[%clk 0:03:01]} 5. Be3 {[%clk 0:02:55]}  Nf6 {[%clk 0:02:57]} 6. Nc3 {[%clk 0:02:55]}  Bg7 {[%clk 0:02:57]} 7. Bc4 {[%clk 0:02:56]}  d6 {[%clk 0:02:56]} 8. Bb3 {[%clk 0:02:54]}  Ng4 {[%clk 0:02:55]} 9. Nxc6 {[%clk 0:02:40]}  bxc6 {[%clk 0:02:40]} 10. Bd2 {[%clk 0:02:27]}  Qc7 {[%clk 0:02:30]} 11. h3 {[%clk 0:02:22]}  Ne5 {[%clk 0:02:27]} 12. O-O {[%clk 0:02:20]}  O-O {[%clk 0:02:25]} 13. f4 {[%clk 0:02:15]}  Nd7 {[%clk 0:02:25]} 14. Qf3 {[%clk 0:02:08]}  a5 {[%clk 0:02:22]} 15. a3 {[%clk 0:01:42]}  Nc5 {[%clk 0:02:17]} 16. Bc4 {[%clk 0:01:41]}  Rb8 {[%clk 0:02:04]} 17. Rab1 {[%clk 0:01:40]}  e6 {[%clk 0:01:58]} 18. b4 {[%clk 0:01:31]}  axb4 {[%clk 0:01:57]} 19. axb4 {[%clk 0:01:32]}  Nd7 {[%clk 0:01:57]} 20. Bd3 {[%clk 0:01:16]}  c5 {[%clk 0:01:44]} 21. bxc5 {[%clk 0:01:02]}  Nxc5 {[%clk 0:01:39]} 22. Nb5 {[%clk 0:00:56]}  Qe7 {[%clk 0:01:37]} 23. Bc3 {[%clk 0:00:34]}  Bd7 {[%clk 0:01:23]} 24. Bxg7 {[%clk 0:00:32]}  Kxg7 {[%clk 0:01:24]} 25. c4 {[%clk 0:00:23]}  Ra8 {[%clk 0:01:16]} 26. e5 {[%clk 0:00:20]}  Bxb5 {[%clk 0:00:55]} 27. cxb5 {[%clk 0:00:15]}  Ra3 {[%clk 0:00:55]} 28. Rfd1 {[%clk 0:00:14]}  dxe5 {[%clk 0:00:54]} 29. fxe5 {[%clk 0:00:11]}  Rd8 {[%clk 0:00:53]} 30. Qf6+ {[%clk 0:00:11]}  Qxf6 {[%clk 0:00:53]} 31. exf6+ {[%clk 0:00:12]}  Kxf6 {[%clk 0:00:54]} 32. Be2 {[%clk 0:00:11]}  Rxd1+ {[%clk 0:00:53]} 33. Bxd1 {[%clk 0:00:10]}  Ke7 {[%clk 0:00:52]} 34. b6 {[%clk 0:00:10]}  Ra8 {[%clk 0:00:53]} 35. Bf3 {[%clk 0:00:09]}  Rb8 {[%clk 0:00:53]} 36. Kf2 {[%clk 0:00:09]}  f5 {[%clk 0:00:53]} 37. g4 {[%clk 0:00:09]}  e5 {[%clk 0:00:52]} 38. gxf5 {[%clk 0:00:08]}  gxf5 {[%clk 0:00:52]} 39. Rb5 {[%clk 0:00:06]}  Kd6 {[%clk 0:00:52]} 40. Ke3 {[%clk 0:00:04]}  e4 {[%clk 0:00:50]} 41. Bh5 {[%clk 0:00:03]}  Kc6 {[%clk 0:00:50]} 42. Rb1 {[%clk 0:00:03]}  Rxb6 {[%clk 0:00:49]} 43. Rxb6+ {[%clk 0:00:03]}  Kxb6 {[%clk 0:00:50]} 44. Kf4 {[%clk 0:00:03]}  Ne6+ {[%clk 0:00:50]} 45. Kxf5 {[%clk 0:00:02]}  Ng7+ {[%clk 0:00:50]} 46. Kxe4 {[%clk 0:00:03]}  Nxh5 {[%clk 0:00:51]} 47. Kf5 {[%clk 0:00:03]}  Kc6 {[%clk 0:00:49]} 48. Kg5 {[%clk 0:00:04]}  Ng3 {[%clk 0:00:39]} 49. Kh6 {[%clk 0:00:04]}  Kd6 {[%clk 0:00:39]} 50. Kxh7 {[%clk 0:00:04]}  Ke6 {[%clk 0:00:40]} 51. Kg6 {[%clk 0:00:05]}  Nf5 {[%clk 0:00:40]} 52. Kg5 {[%clk 0:00:04]}  Nd6 {[%clk 0:00:38]} 53. h4 {[%clk 0:00:05]}  Kf7 {[%clk 0:00:39]} 54. h5 {[%clk 0:00:05]}  Kg7 {[%clk 0:00:40]} 55. h6+ {[%clk 0:00:05]}  Kh7 {[%clk 0:00:40]} 56. Kh5 {[%clk 0:00:06]}  Nf7 {[%clk 0:00:41]} 57. Kg4 {[%clk 0:00:07]}  Kxh6 {[%clk 0:00:42]} 1/2-1/2


[Site "https://www.chess.com"]

[Event "Titled Tuesday Blitz April 25 Late 2023"]
[White "Hansen, Eric"]
[Black "Zakarian, David"]
[WhiteFideId "2606771"]
[BlackFideId "13301276"]
[WhiteElo "2561"]
[BlackElo "2306"]
[Result "1-0"]
[Round "01"]
[TimeControl "180+2"]
[Date "2023.04.25"]
[WhiteClock "0:00:19"]
[BlackClock "0:00:22"]

1. e4 {[%clk 0:01:49]}  Nc6 {[%clk 0:02:58]} 2. Nf3 {[%clk 0:01:44]}  d6 {[%clk 0:02:59]} 3. d4 {[%clk 0:01:41]}  Nf6 {[%clk 0:02:59]} 4. d5 {[%clk 0:01:39]}  Nb8 {[%clk 0:02:58]} 5. Bd3 {[%clk 0:01:34]}  g6 {[%clk 0:02:57]} 6. h3 {[%clk 0:01:34]}  Bg7 {[%clk 0:02:58]} 7. c4 {[%clk 0:01:34]}  O-O {[%clk 0:02:57]} 8. Nc3 {[%clk 0:01:35]}  a5 {[%clk 0:02:58]} 9. O-O {[%clk 0:01:35]}  c6 {[%clk 0:02:58]} 10. Be3 {[%clk 0:01:35]}  Nbd7 {[%clk 0:02:54]} 11. c5 {[%clk 0:01:35]}  Nxc5 {[%clk 0:02:53]} 12. Bxc5 {[%clk 0:01:31]}  dxc5 {[%clk 0:02:53]} 13. dxc6 {[%clk 0:01:31]}  bxc6 {[%clk 0:02:53]} 14. Qe2 {[%clk 0:01:25]}  h6 {[%clk 0:02:41]} 15. Na4 {[%clk 0:01:24]}  Nd7 {[%clk 0:02:38]} 16. Rac1 {[%clk 0:01:24]}  Rb8 {[%clk 0:02:22]} 17. b3 {[%clk 0:01:24]}  Qc7 {[%clk 0:02:06]} 18. Rfd1 {[%clk 0:01:24]}  Qa7 {[%clk 0:02:02]} 19. Qe3 {[%clk 0:01:23]}  Rd8 {[%clk 0:01:50]} 20. Bc4 {[%clk 0:01:21]}  Ba6 {[%clk 0:01:41]} 21. Bxa6 {[%clk 0:01:21]}  Qxa6 {[%clk 0:01:41]} 22. Rxd7 {[%clk 0:01:12]}  Rxd7 {[%clk 0:01:37]} 23. Nxc5 {[%clk 0:01:12]}  Qa7 {[%clk 0:01:37]} 24. Nxd7 {[%clk 0:01:13]}  Qxd7 {[%clk 0:01:38]} 25. Qc5 {[%clk 0:01:13]}  a4 {[%clk 0:01:27]} 26. bxa4 {[%clk 0:01:13]}  Rb2 {[%clk 0:01:26]} 27. Qc4 {[%clk 0:01:05]}  Qa7 {[%clk 0:01:23]} 28. Rc2 {[%clk 0:01:01]}  Rxc2 {[%clk 0:01:04]} 29. Qxc2 {[%clk 0:01:01]}  c5 {[%clk 0:01:05]} 30. Qc4 {[%clk 0:01:00]}  Qa5 {[%clk 0:01:05]} 31. g3 {[%clk 0:00:49]}  e6 {[%clk 0:01:02]} 32. Kg2 {[%clk 0:00:50]}  g5 {[%clk 0:00:50]} 33. Qb5 {[%clk 0:00:46]}  Bc3 {[%clk 0:00:48]} 34. Qxa5 {[%clk 0:00:38]}  Bxa5 {[%clk 0:00:49]} 35. Ne5 {[%clk 0:00:38]}  f5 {[%clk 0:00:34]} 36. exf5 {[%clk 0:00:37]}  exf5 {[%clk 0:00:35]} 37. Nc6 {[%clk 0:00:36]}  Bc7 {[%clk 0:00:29]} 38. a5 {[%clk 0:00:36]}  c4 {[%clk 0:00:30]} 39. a6 {[%clk 0:00:35]}  Bb6 {[%clk 0:00:30]} 40. Kf3 {[%clk 0:00:28]}  c3 {[%clk 0:00:25]} 41. Ke2 {[%clk 0:00:26]}  Bxf2 {[%clk 0:00:23]} 42. a7 {[%clk 0:00:26]}  Bxa7 {[%clk 0:00:22]} 43. Nxa7 {[%clk 0:00:27]}  f4 {[%clk 0:00:21]} 44. gxf4 {[%clk 0:00:23]}  c2 {[%clk 0:00:21]} 45. Kd2 {[%clk 0:00:19]}  gxf4 {[%clk 0:00:22]} 46. Nc6 {[%clk 0:00:17]}  f3 {[%clk 0:00:22]} 47. Ne7+ {[%clk 0:00:18]}  Kf7 {[%clk 0:00:20]} 48. Nd5 {[%clk 0:00:18]}  f2 {[%clk 0:00:21]} 49. Ne3 {[%clk 0:00:18]}  Ke6 {[%clk 0:00:19]} 50. Kxc2 {[%clk 0:00:18]}  Ke5 {[%clk 0:00:18]} 51. Kd3 {[%clk 0:00:18]}  Kf4 {[%clk 0:00:18]} 52. Ke2 {[%clk 0:00:19]}  Kg3 {[%clk 0:00:18]} 53. a4 {[%clk 0:00:19]}  Kxh3 {[%clk 0:00:18]} 54. a5 {[%clk 0:00:18]}  Kg3 {[%clk 0:00:19]} 55. a6 {[%clk 0:00:19]}  h5 {[%clk 0:00:20]} 56. a7 {[%clk 0:00:19]}  h4 {[%clk 0:00:21]} 57. a8=Q {[%clk 0:00:19]}  h3 {[%clk 0:00:22]} 58. Qe4 {[%clk 0:00:19]} 1-0


[Site "https://www.chess.com"]

[Event "Titled Tuesday Blitz April 25 Late 2023"]
[White "Khandelwal, Ankush"]
[Black "Babazada, Khazar"]
[WhiteFideId "413470"]
[BlackFideId "13413554"]
[WhiteElo "2263"]
[BlackElo "2351"]
[Result "1-0"]
[Round "01"]
[TimeControl "180+2"]
[Date "2023.04.25"]
[WhiteClock "0:00:14"]
[BlackClock "0:00:29"]

1. e4 {[%clk 0:02:57]}  c5 {[%clk 0:02:56]} 2. Nf3 {[%clk 0:02:56]}  e6 {[%clk 0:02:56]} 3. d4 {[%clk 0:02:55]}  cxd4 {[%clk 0:02:57]} 4. Nxd4 {[%clk 0:02:56]}  a6 {[%clk 0:02:57]} 5. c4 {[%clk 0:02:40]}  Nf6 {[%clk 0:02:56]} 6. Nc3 {[%clk 0:02:37]}  d6 {[%clk 0:02:55]} 7. Qd3 {[%clk 0:02:23]}  Be7 {[%clk 0:02:54]} 8. Be2 {[%clk 0:02:09]}  Nbd7 {[%clk 0:02:53]} 9. f4 {[%clk 0:02:07]}  Qc7 {[%clk 0:02:51]} 10. O-O {[%clk 0:02:07]}  b6 {[%clk 0:02:51]} 11. b4 {[%clk 0:01:56]}  O-O {[%clk 0:02:37]} 12. Be3 {[%clk 0:01:52]}  Bb7 {[%clk 0:02:36]} 13. Rac1 {[%clk 0:01:42]}  Rfc8 {[%clk 0:02:34]} 14. Rfd1 {[%clk 0:01:37]}  Bf8 {[%clk 0:02:17]} 15. a3 {[%clk 0:01:30]}  g6 {[%clk 0:02:06]} 16. Nf3 {[%clk 0:01:03]}  Qb8 {[%clk 0:01:37]} 17. h3 {[%clk 0:00:59]}  Ra7 {[%clk 0:01:35]} 18. e5 {[%clk 0:00:56]}  dxe5 {[%clk 0:01:35]} 19. fxe5 {[%clk 0:00:57]}  Nxe5 {[%clk 0:01:35]} 20. Nxe5 {[%clk 0:00:57]}  Qxe5 {[%clk 0:01:36]} 21. Bxb6 {[%clk 0:00:57]}  Raa8 {[%clk 0:01:35]} 22. Bd4 {[%clk 0:00:57]}  Qg5 {[%clk 0:01:35]} 23. Bf3 {[%clk 0:00:55]}  Bxf3 {[%clk 0:01:35]} 24. Qxf3 {[%clk 0:00:56]}  e5 {[%clk 0:01:33]} 25. Be3 {[%clk 0:00:52]}  Qf5 {[%clk 0:01:33]} 26. Qxf5 {[%clk 0:00:51]}  gxf5 {[%clk 0:01:34]} 27. c5 {[%clk 0:00:46]}  f4 {[%clk 0:01:28]} 28. Bf2 {[%clk 0:00:44]}  Bg7 {[%clk 0:01:23]} 29. Bh4 {[%clk 0:00:42]}  a5 {[%clk 0:01:19]} 30. Bxf6 {[%clk 0:00:41]}  Bxf6 {[%clk 0:01:20]} 31. Ne4 {[%clk 0:00:41]}  Bd8 {[%clk 0:01:20]} 32. b5 {[%clk 0:00:39]}  Be7 {[%clk 0:01:20]} 33. Rd7 {[%clk 0:00:33]}  Kf8 {[%clk 0:01:20]} 34. c6 {[%clk 0:00:24]}  a4 {[%clk 0:01:19]} 35. b6 {[%clk 0:00:23]}  Rab8 {[%clk 0:00:37]} 36. b7 {[%clk 0:00:23]}  Re8 {[%clk 0:00:35]} 37. Rb1 {[%clk 0:00:21]}  f5 {[%clk 0:00:33]} 38. Nd6 {[%clk 0:00:17]}  Bxd6 {[%clk 0:00:31]} 39. Rxd6 {[%clk 0:00:17]}  Re7 {[%clk 0:00:32]} 40. Rbd1 {[%clk 0:00:16]}  Ke8 {[%clk 0:00:29]} 41. Rd7 {[%clk 0:00:14]} 1-0


[Site "https://www.chess.com"]